[Event "Late-Titled-Tuesday-Blitz-May-14-2024"]
[Site "Chess.com"]
[Date "2024.05.14"]
[Round "9"]
[White "ameetghasi100"]
[Black "RantomOpening"]
[Result "1-0"]
[WhiteElo "2794"]
[BlackElo "2589"]
[TimeControl "180+1"]
[EndTime "15:44:36 PDT"]
[Termination "ameetghasi100 won by checkmate"]

1. g3 {[%clk 0:03:00.9]} 1... d5 {[%clk 0:02:56.6]} 2. Bg2 {[%clk 0:03:01.8]}
2... e6 {[%clk 0:02:56.2]} 3. d3 {[%clk 0:03:02.2]} 3... Nf6 {[%clk 0:02:56.1]}
4. Nf3 {[%clk 0:03:01.7]} 4... Be7 {[%clk 0:02:57]} 5. O-O {[%clk 0:03:01.9]}
5... O-O {[%clk 0:02:57.3]} 6. a3 {[%clk 0:02:59.5]} 6... c5 {[%clk 0:02:53.5]}
7. c4 {[%clk 0:03:00]} 7... Nc6 {[%clk 0:02:50.2]} 8. Nc3 {[%clk 0:02:59]} 8...
d4 {[%clk 0:02:49.3]} 9. Na4 {[%clk 0:02:57.7]} 9... e5 {[%clk 0:02:43.9]} 10.
e3 {[%clk 0:02:55.2]} 10... dxe3 {[%clk 0:02:41.2]} 11. Bxe3 {[%clk 0:02:56.1]}
11... Bf5 {[%clk 0:02:25.5]} 12. Ne1 {[%clk 0:02:41.5]} 12... Nd4 {[%clk
0:02:15.3]} 13. Bxb7 {[%clk 0:02:35.3]} 13... Rb8 {[%clk 0:02:15]} 14. Bg2
{[%clk 0:02:33.1]} 14... Qd7 {[%clk 0:02:02.7]} 15. Ra2 {[%clk 0:02:24.2]} 15...
Bg4 {[%clk 0:01:49.4]} 16. f3 {[%clk 0:02:21.5]} 16... Be6 {[%clk 0:01:44.6]}
17. Nc3 {[%clk 0:02:17.3]} 17... h5 {[%clk 0:01:37.6]} 18. Rf2 {[%clk
0:02:15.6]} 18... h4 {[%clk 0:01:33.2]} 19. g4 {[%clk 0:02:15.3]} 19... Bxg4
{[%clk 0:01:27]} 20. fxg4 {[%clk 0:02:16.2]} 20... Nxg4 {[%clk 0:01:27.8]} 21.
Bh3 {[%clk 0:02:07]} 21... Nxf2 {[%clk 0:01:21.2]} 22. Bxd7 {[%clk 0:02:01.9]}
22... Nxd1 {[%clk 0:01:20.1]} 23. Nxd1 {[%clk 0:02:02.3]} 23... Rfd8 {[%clk
0:01:14.7]} 24. Bh3 {[%clk 0:01:55.3]} 24... Rb6 {[%clk 0:01:01.6]} 25. Nc3
{[%clk 0:01:37.7]} 25... Rg6+ {[%clk 0:01:01.4]} 26. Kf1 {[%clk 0:01:31.6]}
26... Bg5 {[%clk 0:00:54]} 27. Bf2 {[%clk 0:01:27.3]} 27... Bd2 {[%clk 0:00:47]}
28. Nd5 {[%clk 0:01:24.1]} 28... Kf8 {[%clk 0:00:33.9]} 29. Bxd4 {[%clk
0:01:06.4]} 29... exd4 {[%clk 0:00:31.9]} 30. Nf3 {[%clk 0:01:05.9]} 30... Bg5
{[%clk 0:00:27.9]} 31. b4 {[%clk 0:01:05.5]} 31... cxb4 {[%clk 0:00:20.7]} 32.
axb4 {[%clk 0:01:06.4]} 32... Be3 {[%clk 0:00:18.4]} 33. Rxa7 {[%clk 0:00:56.2]}
33... Rb8 {[%clk 0:00:06.1]} 34. b5 {[%clk 0:00:55.8]} 34... Rd6 {[%clk
0:00:06]} 35. b6 {[%clk 0:00:54.5]} 35... Rdxb6 {[%clk 0:00:05]} 36. Nxb6 {[%clk
0:00:52.6]} 36... Rxb6 {[%clk 0:00:05.9]} 37. Ne5 {[%clk 0:00:30.9]} 37... Rb1+
{[%clk 0:00:05.4]} 38. Ke2 {[%clk 0:00:30.7]} 38... Rb2+ {[%clk 0:00:04.9]} 39.
Kf3 {[%clk 0:00:30.6]} 39... Rxh2 {[%clk 0:00:05.4]} 40. Rxf7+ {[%clk
0:00:27.8]} 40... Ke8 {[%clk 0:00:05.6]} 41. Bd7+ {[%clk 0:00:27.5]} 41... Kd8
{[%clk 0:00:06.5]} 42. Ke4 {[%clk 0:00:21.1]} 42... Ra2 {[%clk 0:00:01.8]} 43.
Kd5 {[%clk 0:00:20.6]} 43... Kc7 {[%clk 0:00:02]} 44. c5 {[%clk 0:00:20.4]}
44... Kb8 {[%clk 0:00:01.7]} 45. Bb5 {[%clk 0:00:19]} 45... Ka8 {[%clk
0:00:02.6]} 46. Nc6 {[%clk 0:00:18]} 46... Bf4 {[%clk 0:00:01.6]} 47. Rxg7
{[%clk 0:00:17.5]} 47... h3 {[%clk 0:00:01.4]} 48. Rh7 {[%clk 0:00:16.5]} 48...
h2 {[%clk 0:00:01.8]} 49. Nxd4 {[%clk 0:00:15.4]} 49... Ra1 {[%clk 0:00:02.1]}
50. Bc6+ {[%clk 0:00:15.1]} 50... Kb8 {[%clk 0:00:02.6]} 51. Ke6 {[%clk
0:00:15.5]} 51... Be3 {[%clk 0:00:01.1]} 52. Nb3 {[%clk 0:00:14.9]} 52... Ra6
{[%clk 0:00:01.5]} 53. Kd5 {[%clk 0:00:13.2]} 53... Ra3 {[%clk 0:00:01.8]} 54.
Rh8+ {[%clk 0:00:09.9]} 54... Kc7 {[%clk 0:00:01.7]} 55. Rh7+ {[%clk 0:00:10.8]}
55... Kb8 {[%clk 0:00:01.9]} 56. Kc4 {[%clk 0:00:11.1]} 56... Ra2 {[%clk
0:00:01.4]} 57. d4 {[%clk 0:00:09.6]} 57... Rc2+ {[%clk 0:00:01.8]} 58. Kd3
{[%clk 0:00:09.6]} 58... Rb2 {[%clk 0:00:02.4]} 59. Kxe3 {[%clk 0:00:09.5]}
59... Rxb3+ {[%clk 0:00:03.1]} 60. Ke4 {[%clk 0:00:09.8]} 60... Rb2 {[%clk
0:00:03.6]} 61. Ke5 {[%clk 0:00:10]} 61... Re2+ {[%clk 0:00:04.1]} 62. Be4
{[%clk 0:00:10]} 62... Rf2 {[%clk 0:00:02.6]} 63. d5 {[%clk 0:00:09.8]} 63...
Kc8 {[%clk 0:00:03.1]} 64. d6 {[%clk 0:00:09.6]} 64... Kd8 {[%clk 0:00:03.4]}
65. c6 {[%clk 0:00:09.4]} 65... Ke8 {[%clk 0:00:02.4]} 66. Rh8+ {[%clk
0:00:08.9]} 66... Kf7 {[%clk 0:00:02.3]} 67. c7 {[%clk 0:00:08.6]} 67... Rf6
{[%clk 0:00:01.4]} 68. Rh7+ {[%clk 0:00:08.1]} 68... Kg8 {[%clk 0:00:01.4]} 69.
Kxf6 {[%clk 0:00:08]} 69... h1=Q {[%clk 0:00:02.3]} 70. Rxh1 {[%clk 0:00:07]}
70... Kf8 {[%clk 0:00:03.2]} 71. Rh8# {[%clk 0:00:06.9]} 1-0

[Event "Late-Titled-Tuesday-Blitz-May-14-2024"]
[Site "Chess.com"]
[Date "2024.05.14"]
[Round "9"]
[White "Hakiki_satranc"]
[Black "nitpicker"]
[Result "0-1"]
[WhiteElo "2409"]
[BlackElo "2314"]
[TimeControl "180+1"]
[EndTime "15:44:37 PDT"]
[Termination "nitpicker won by checkmate"]

1. e4 {[%clk 0:03:00.9]} 1... c5 {[%clk 0:02:59.1]} 2. Nf3 {[%clk 0:02:59.1]}
2... Nc6 {[%clk 0:02:58.6]} 3. Nc3 {[%clk 0:02:56.8]} 3... d6 {[%clk 0:02:56.8]}
4. d4 {[%clk 0:02:54.3]} 4... cxd4 {[%clk 0:02:56.9]} 5. Nxd4 {[%clk 0:02:55.2]}
5... Nf6 {[%clk 0:02:56.7]} 6. Be3 {[%clk 0:02:53.2]} 6... e5 {[%clk 0:02:41.1]}
7. Nb3 {[%clk 0:02:45.3]} 7... h6 {[%clk 0:02:39.8]} 8. h3 {[%clk 0:02:30.5]}
8... Be6 {[%clk 0:02:38.2]} 9. f4 {[%clk 0:02:29.7]} 9... exf4 {[%clk
0:02:25.2]} 10. Bxf4 {[%clk 0:02:30.6]} 10... a6 {[%clk 0:02:10.3]} 11. Qe2
{[%clk 0:02:27.4]} 11... Ne5 {[%clk 0:02:06.3]} 12. O-O-O {[%clk 0:02:26.2]}
12... Qc7 {[%clk 0:02:03.7]} 13. Nd4 {[%clk 0:02:15.1]} 13... Bc4 {[%clk
0:01:54.2]} 14. Qe1 {[%clk 0:02:11.5]} 14... Rc8 {[%clk 0:01:39.8]} 15. Kb1
{[%clk 0:01:57.5]} 15... g6 {[%clk 0:01:28.4]} 16. g4 {[%clk 0:01:40.5]} 16...
Bg7 {[%clk 0:01:27.2]} 17. Bg2 {[%clk 0:01:16.3]} 17... O-O {[%clk 0:01:20.6]}
18. Rg1 {[%clk 0:01:02.8]} 18... b5 {[%clk 0:01:11.9]} 19. Qg3 {[%clk 0:00:37]}
19... b4 {[%clk 0:01:07.7]} 20. Nd5 {[%clk 0:00:29.3]} 20... Bxd5 {[%clk
0:01:06.7]} 21. exd5 {[%clk 0:00:30.2]} 21... Nfd7 {[%clk 0:01:05.9]} 22. Rc1
{[%clk 0:00:24.8]} 22... Nc4 {[%clk 0:01:04.1]} 23. Nf5 {[%clk 0:00:13.4]} 23...
Bxb2 {[%clk 0:00:55.4]} 24. Nxh6+ {[%clk 0:00:13.1]} 24... Kg7 {[%clk
0:00:50.8]} 25. Rcf1 {[%clk 0:00:08.9]} 25... Bd4 {[%clk 0:00:46.2]} 26. Be4
{[%clk 0:00:07.7]} 26... Na3+ {[%clk 0:00:39.6]} 27. Kc1 {[%clk 0:00:06.9]}
27... Nxc2 {[%clk 0:00:38.7]} 28. Bxd6 {[%clk 0:00:04.2]} 28... Be3+ {[%clk
0:00:19.9]} 29. Qxe3 {[%clk 0:00:02.4]} 29... Nxe3+ {[%clk 0:00:19]} 30. Bxc7
{[%clk 0:00:03]} 30... Rxc7+ {[%clk 0:00:19.5]} 31. Kb2 {[%clk 0:00:02.8]} 31...
Kxh6 {[%clk 0:00:19.4]} 32. Re1 {[%clk 0:00:02.2]} 32... Nc4+ {[%clk 0:00:17.7]}
33. Ka1 {[%clk 0:00:01.9]} 33... Nce5 {[%clk 0:00:17.9]} 34. d6 {[%clk
0:00:00.7]} 34... Rc3 {[%clk 0:00:17.1]} 35. g5+ {[%clk 0:00:01.6]} 35... Kg7
{[%clk 0:00:16.8]} 36. h4 {[%clk 0:00:02.2]} 36... Rfc8 {[%clk 0:00:16]} 37. Bd5
{[%clk 0:00:02.4]} 37... Rc2 {[%clk 0:00:14.9]} 38. Rb1 {[%clk 0:00:02.3]} 38...
a5 {[%clk 0:00:14]} 39. Rgf1 {[%clk 0:00:01.9]} 39... Rd2 {[%clk 0:00:13.8]} 40.
h5 {[%clk 0:00:02.5]} 40... Rxd5 {[%clk 0:00:12.7]} 41. h6+ {[%clk 0:00:03.1]}
41... Kg8 {[%clk 0:00:12.3]} 42. Rbd1 {[%clk 0:00:03]} 42... Rxd1+ {[%clk
0:00:10.9]} 43. Rxd1 {[%clk 0:00:03.9]} 43... Rc3 {[%clk 0:00:10.1]} 44. Re1
{[%clk 0:00:02.7]} 44... Rd3 {[%clk 0:00:09.8]} 45. Rc1 {[%clk 0:00:02.3]} 45...
Rxd6 {[%clk 0:00:08.9]} 46. Rc8+ {[%clk 0:00:02.6]} 46... Kh7 {[%clk 0:00:08.9]}
47. Rd8 {[%clk 0:00:03.3]} 47... Nf3 {[%clk 0:00:08.1]} 48. Kb2 {[%clk
0:00:03.4]} 48... Nxg5 {[%clk 0:00:08.1]} 49. Kb3 {[%clk 0:00:03.5]} 49... Kxh6
{[%clk 0:00:08.3]} 50. Ka4 {[%clk 0:00:04.1]} 50... Rd5 {[%clk 0:00:08.8]} 51.
Rc8 {[%clk 0:00:03.1]} 51... Ne6 {[%clk 0:00:08.7]} 52. Re8 {[%clk 0:00:02.6]}
52... g5 {[%clk 0:00:08.7]} 53. Re7 {[%clk 0:00:03.5]} 53... Ne5 {[%clk
0:00:07.4]} 54. Re8 {[%clk 0:00:03.1]} 54... g4 {[%clk 0:00:07.5]} 55. Rg8
{[%clk 0:00:03.1]} 55... Kh5 {[%clk 0:00:07.2]} 56. a3 {[%clk 0:00:03.5]} 56...
bxa3 {[%clk 0:00:05.8]} 57. Kxa3 {[%clk 0:00:04.4]} 57... Rd4 {[%clk 0:00:05.6]}
58. Rh8+ {[%clk 0:00:05]} 58... Kg5 {[%clk 0:00:05.6]} 59. Rg8+ {[%clk
0:00:05.6]} 59... Ng6 {[%clk 0:00:05.7]} 60. Rb8 {[%clk 0:00:05.1]} 60... g3
{[%clk 0:00:05.8]} 61. Rb1 {[%clk 0:00:06]} 61... g2 {[%clk 0:00:05.9]} 62. Rg1
{[%clk 0:00:06.8]} 62... Rg4 {[%clk 0:00:06.2]} 63. Kb3 {[%clk 0:00:07]} 63...
Ngf4 {[%clk 0:00:06.7]} 64. Kc2 {[%clk 0:00:06.5]} 64... Ne2 {[%clk 0:00:06.8]}
65. Rd1 {[%clk 0:00:05.9]} 65... g1=Q {[%clk 0:00:04.3]} 66. Rd5+ {[%clk
0:00:06.8]} 66... f5 {[%clk 0:00:02.7]} 67. Rd7 {[%clk 0:00:06.2]} 67... N2f4
{[%clk 0:00:02.8]} 68. Rc7 {[%clk 0:00:05.2]} 68... Rg2+ {[%clk 0:00:02.8]} 69.
Kb3 {[%clk 0:00:05.1]} 69... Qb6+ {[%clk 0:00:02.5]} 70. Kc3 {[%clk 0:00:04.5]}
70... Qxc7+ {[%clk 0:00:02.5]} 71. Kb3 {[%clk 0:00:04.9]} 71... Qb6+ {[%clk
0:00:02.7]} 72. Kc3 {[%clk 0:00:04.3]} 72... Qd4+ {[%clk 0:00:02.7]} 73. Kb3
{[%clk 0:00:04.2]} 73... Qb4# {[%clk 0:00:02.4]} 0-1

[Event "Late-Titled-Tuesday-Blitz-May-14-2024"]
[Site "Chess.com"]
[Date "2024.05.14"]
[Round "9"]
[White "NikitaShnadrygin"]
[Black "Rsnr"]
[Result "0-1"]
[WhiteElo "2760"]
[BlackElo "2908"]
[TimeControl "180+1"]
[EndTime "15:44:44 PDT"]
[Termination "Rsnr won by resignation"]

1. e4 {[%clk 0:03:00.9]} 1... c6 {[%clk 0:03:00]} 2. d4 {[%clk 0:03:00.9]} 2...
d5 {[%clk 0:03:00.9]} 3. f3 {[%clk 0:03:01.6]} 3... Qb6 {[%clk 0:03:00.7]} 4.
Nc3 {[%clk 0:03:01.1]} 4... dxe4 {[%clk 0:03:01]} 5. fxe4 {[%clk 0:03:01.3]}
5... e5 {[%clk 0:03:01.3]} 6. Nf3 {[%clk 0:03:02]} 6... exd4 {[%clk 0:03:01.8]}
7. Qxd4 {[%clk 0:03:02.9]} 7... Qxd4 {[%clk 0:03:01.2]} 8. Nxd4 {[%clk
0:03:03.4]} 8... Bc5 {[%clk 0:02:59.9]} 9. Be3 {[%clk 0:03:02.4]} 9... Nf6
{[%clk 0:02:56.2]} 10. O-O-O {[%clk 0:03:02.2]} 10... Ng4 {[%clk 0:02:50]} 11.
Bg1 {[%clk 0:03:02.1]} 11... O-O {[%clk 0:02:33.1]} 12. h3 {[%clk 0:03:02.1]}
12... Ne5 {[%clk 0:02:33.5]} 13. Bh2 {[%clk 0:03:02.2]} 13... Nbd7 {[%clk
0:02:33.9]} 14. Nf5 {[%clk 0:03:02.7]} 14... Re8 {[%clk 0:02:31.3]} 15. Nd6
{[%clk 0:03:02.3]} 15... Bxd6 {[%clk 0:02:31.4]} 16. Rxd6 {[%clk 0:03:03.2]}
16... Ng6 {[%clk 0:02:20.3]} 17. Bc4 {[%clk 0:02:54]} 17... Nde5 {[%clk
0:02:20.6]} 18. Bb3 {[%clk 0:02:52.8]} 18... Be6 {[%clk 0:02:20.9]} 19. Rhd1
{[%clk 0:02:47.2]} 19... Bxb3 {[%clk 0:02:19.6]} 20. axb3 {[%clk 0:02:48.1]}
20... f6 {[%clk 0:02:15.1]} 21. Na4 {[%clk 0:02:45]} 21... Re7 {[%clk
0:02:14.2]} 22. Nc5 {[%clk 0:02:39]} 22... Rae8 {[%clk 0:02:13.6]} 23. R1d2
{[%clk 0:02:21.1]} 23... h5 {[%clk 0:02:11.8]} 24. Rf2 {[%clk 0:01:51.8]} 24...
Nf7 {[%clk 0:02:08.5]} 25. Rd1 {[%clk 0:01:19.6]} 25... b6 {[%clk 0:02:07.8]}
26. Nd3 {[%clk 0:01:20.2]} 26... Rxe4 {[%clk 0:02:07.7]} 27. Rf5 {[%clk
0:01:20.9]} 27... Re2 {[%clk 0:02:02.4]} 28. Rd2 {[%clk 0:01:19]} 28... h4
{[%clk 0:01:55.8]} 29. Rf2 {[%clk 0:01:17.4]} 29... R2e4 {[%clk 0:01:50]} 30. c3
{[%clk 0:01:16.4]} 30... c5 {[%clk 0:01:48.1]} 31. Kc2 {[%clk 0:01:14.3]} 31...
Ng5 {[%clk 0:01:30.2]} 32. Nf4 {[%clk 0:00:59.7]} 32... Nxf4 {[%clk 0:01:30.4]}
33. Bxf4 {[%clk 0:01:00.6]} 33... Ne6 {[%clk 0:01:30]} 34. Bh2 {[%clk
0:01:00.9]} 34... Re7 {[%clk 0:01:29.5]} 35. Kd3 {[%clk 0:00:56.4]} 35... Ng5
{[%clk 0:01:02.8]} 36. Bf4 {[%clk 0:00:55.6]} 36... Nf7 {[%clk 0:00:44.3]} 37.
Kc2 {[%clk 0:00:48.4]} 37... g5 {[%clk 0:00:40]} 38. Bb8 {[%clk 0:00:48]} 38...
Kg7 {[%clk 0:00:40.1]} 39. Rf3 {[%clk 0:00:33.7]} 39... Kg6 {[%clk 0:00:39.8]}
40. Rdf2 {[%clk 0:00:30]} 40... Re2+ {[%clk 0:00:39.3]} 41. Kb1 {[%clk
0:00:29.8]} 41... Rxf2 {[%clk 0:00:39.2]} 42. Rxf2 {[%clk 0:00:30.3]} 42... f5
{[%clk 0:00:39.6]} 43. Kc2 {[%clk 0:00:29]} 43... f4 {[%clk 0:00:39.9]} 44. Rd2
{[%clk 0:00:27.5]} 44... Kf5 {[%clk 0:00:28.4]} 45. b4 {[%clk 0:00:16.7]} 45...
cxb4 {[%clk 0:00:27.8]} 46. cxb4 {[%clk 0:00:17.6]} 46... Rb7 {[%clk 0:00:23.4]}
47. Bd6 {[%clk 0:00:17.8]} 47... Nxd6 {[%clk 0:00:20]} 48. Rxd6 {[%clk
0:00:18.7]} 48... Re7 {[%clk 0:00:20.7]} 49. Rd5+ {[%clk 0:00:18.4]} 49... Re5
{[%clk 0:00:20.6]} 50. Rd2 {[%clk 0:00:18.2]} 50... Re3 {[%clk 0:00:13.4]} 51.
Rd5+ {[%clk 0:00:17.6]} 51... Kf6 {[%clk 0:00:13.5]} 52. Rd2 {[%clk 0:00:16.1]}
52... Rg3 {[%clk 0:00:13.5]} 53. b3 {[%clk 0:00:14.2]} 53... Ke5 {[%clk
0:00:13.7]} 54. Re2+ {[%clk 0:00:13.6]} 54... Kd5 {[%clk 0:00:13.1]} 55. Kb2
{[%clk 0:00:13.6]} 55... Kc6 {[%clk 0:00:13]} 56. Ka3 {[%clk 0:00:13.9]} 56...
Kd6 {[%clk 0:00:07.7]} 57. Ka4 {[%clk 0:00:13.2]} 57... a6 {[%clk 0:00:07.7]}
58. b5 {[%clk 0:00:13.6]} 58... a5 {[%clk 0:00:08.3]} 59. b4 {[%clk 0:00:14.1]}
59... axb4 {[%clk 0:00:08.9]} 60. Kxb4 {[%clk 0:00:15]} 60... f3 {[%clk
0:00:08.7]} 61. gxf3 {[%clk 0:00:15]} 61... Rxf3 {[%clk 0:00:09.2]} 62. Rg2
{[%clk 0:00:14.4]} 62... Rg3 {[%clk 0:00:09.6]} 63. Rh2 {[%clk 0:00:12.7]} 63...
Kd5 {[%clk 0:00:08.9]} 64. Rd2+ {[%clk 0:00:13]} 64... Ke5 {[%clk 0:00:09.6]}
65. Kc4 {[%clk 0:00:13.6]} 65... Rxh3 {[%clk 0:00:09.5]} 66. Rd5+ {[%clk
0:00:13.8]} 66... Kf4 {[%clk 0:00:10.1]} 67. Rd4+ {[%clk 0:00:14.1]} 67... Kf5
{[%clk 0:00:09.6]} 68. Rd5+ {[%clk 0:00:14.7]} 68... Kg4 {[%clk 0:00:09.7]} 69.
Rd4+ {[%clk 0:00:14.6]} 69... Kh5 {[%clk 0:00:09.6]} 70. Rd6 {[%clk 0:00:14.9]}
70... Rh1 {[%clk 0:00:09.8]} 71. Rxb6 {[%clk 0:00:15]} 71... h3 {[%clk
0:00:10.1]} 72. Rb8 {[%clk 0:00:14.9]} 72... g4 {[%clk 0:00:09.6]} 73. Rh8+
{[%clk 0:00:12.5]} 73... Kg5 {[%clk 0:00:09.6]} 74. Kd3 {[%clk 0:00:13.4]} 74...
Rb1 {[%clk 0:00:09.6]} 75. Rg8+ {[%clk 0:00:09.8]} 75... Kf4 {[%clk 0:00:09.8]}
76. Rf8+ {[%clk 0:00:08.7]} 76... Kg3 {[%clk 0:00:10.2]} 0-1

[Event "Late-Titled-Tuesday-Blitz-May-14-2024"]
[Site "Chess.com"]
[Date "2024.05.14"]
[Round "9"]
[White "lilylg"]
[Black "gabduschew"]
[Result "0-1"]
[WhiteElo "2204"]
[BlackElo "2365"]
[TimeControl "180+1"]
[EndTime "15:45:00 PDT"]
[Termination "gabduschew won by resignation"]

1. d4 {[%clk 0:02:53.9]} 1... Nf6 {[%clk 0:02:59.4]} 2. c4 {[%clk 0:02:53.3]}
2... e5 {[%clk 0:02:59.3]} 3. dxe5 {[%clk 0:02:52.2]} 3... Ng4 {[%clk
0:02:59.4]} 4. Bf4 {[%clk 0:02:52.2]} 4... Nc6 {[%clk 0:02:58.9]} 5. Nf3 {[%clk
0:02:51.2]} 5... f6 {[%clk 0:02:58.5]} 6. e3 {[%clk 0:02:37.4]} 6... fxe5 {[%clk
0:02:57.1]} 7. Bg5 {[%clk 0:02:37.6]} 7... Be7 {[%clk 0:02:57]} 8. Bxe7 {[%clk
0:02:37.3]} 8... Qxe7 {[%clk 0:02:57.9]} 9. Nc3 {[%clk 0:02:37.1]} 9... d6
{[%clk 0:02:50]} 10. Be2 {[%clk 0:02:36.3]} 10... O-O {[%clk 0:02:49.8]} 11. h3
{[%clk 0:02:34.4]} 11... Nf6 {[%clk 0:02:49.5]} 12. Nd5 {[%clk 0:02:28.9]} 12...
Nxd5 {[%clk 0:02:48.7]} 13. cxd5 {[%clk 0:02:29]} 13... Nd8 {[%clk 0:02:40.4]}
14. Qc2 {[%clk 0:02:26.2]} 14... Bf5 {[%clk 0:02:39.1]} 15. e4 {[%clk 0:02:26]}
15... Bg6 {[%clk 0:02:37.5]} 16. Rc1 {[%clk 0:02:23.9]} 16... Rc8 {[%clk
0:02:36.8]} 17. h4 {[%clk 0:01:52.1]} 17... Bh5 {[%clk 0:02:30.7]} 18. Rh3
{[%clk 0:01:39.1]} 18... Nf7 {[%clk 0:02:16.3]} 19. Qd2 {[%clk 0:01:06.1]} 19...
h6 {[%clk 0:02:04.6]} 20. Qe3 {[%clk 0:01:04.3]} 20... Nh8 {[%clk 0:02:04.2]}
21. Kd2 {[%clk 0:00:35.8]} 21... Ng6 {[%clk 0:02:02.1]} 22. Rg1 {[%clk
0:00:32.2]} 22... Nf4 {[%clk 0:01:56.3]} 23. Rh2 {[%clk 0:00:32.4]} 23... Nxe2
{[%clk 0:01:52.2]} 24. Kxe2 {[%clk 0:00:32.6]} 24... Rf4 {[%clk 0:01:50.8]} 25.
Rh3 {[%clk 0:00:22.8]} 25... Qd7 {[%clk 0:01:43.8]} 26. g4 {[%clk 0:00:19.4]}
26... Bxg4 {[%clk 0:01:40.4]} 27. Rhg3 {[%clk 0:00:19.4]} 27... Bxf3+ {[%clk
0:01:39.5]} 28. Rxf3 {[%clk 0:00:19.7]} 28... Qb5+ {[%clk 0:01:35.9]} 29. Ke1
{[%clk 0:00:16.9]} 29... Qxb2 {[%clk 0:00:45.1]} 30. Rfg3 {[%clk 0:00:15.8]}
30... Qa1+ {[%clk 0:00:32.6]} 31. Kd2 {[%clk 0:00:15.8]} 31... Qxa2+ {[%clk
0:00:32.5]} 32. Kd1 {[%clk 0:00:15.8]} 32... Qb1+ {[%clk 0:00:30.9]} 33. Kd2
{[%clk 0:00:16.1]} 33... Qb4+ {[%clk 0:00:31.1]} 34. Kd1 {[%clk 0:00:16.4]}
34... Qxe4 {[%clk 0:00:17.3]} 35. Qxe4 {[%clk 0:00:15.8]} 35... Rxe4 {[%clk
0:00:16.9]} 36. Rxg7+ {[%clk 0:00:15.9]} 36... Kh8 {[%clk 0:00:16.4]} 37. h5
{[%clk 0:00:16.2]} 37... Rh4 {[%clk 0:00:12.3]} 38. Rd7 {[%clk 0:00:12.8]} 38...
Rxh5 {[%clk 0:00:10.3]} 39. Rgg7 {[%clk 0:00:13.3]} 39... Rg5 {[%clk 0:00:10.6]}
40. Rh7+ {[%clk 0:00:13.6]} 40... Kg8 {[%clk 0:00:11]} 41. Rxh6 {[%clk
0:00:13.6]} 41... Rg7 {[%clk 0:00:10.2]} 42. Rxg7+ {[%clk 0:00:07.5]} 42... Kxg7
{[%clk 0:00:11.1]} 43. Rh3 {[%clk 0:00:07]} 43... c6 {[%clk 0:00:11.5]} 44. Rc3
{[%clk 0:00:05.5]} 44... c5 {[%clk 0:00:11.2]} 45. Ra3 {[%clk 0:00:05.5]} 45...
a6 {[%clk 0:00:11.6]} 46. Rg3+ {[%clk 0:00:05]} 46... Kf7 {[%clk 0:00:11.7]} 47.
Rh3 {[%clk 0:00:05.4]} 47... Rg8 {[%clk 0:00:11]} 48. Rh6 {[%clk 0:00:05.3]}
48... Ke7 {[%clk 0:00:10.8]} 49. Rh7+ {[%clk 0:00:04.5]} 49... Kd8 {[%clk
0:00:08.7]} 50. Rxb7 {[%clk 0:00:05.1]} 50... Rg4 {[%clk 0:00:07.8]} 51. Ke2
{[%clk 0:00:03]} 51... Rd4 {[%clk 0:00:07.7]} 52. Rb6 {[%clk 0:00:02.6]} 52...
Rxd5 {[%clk 0:00:07.9]} 53. Rxa6 {[%clk 0:00:03]} 53... Kd7 {[%clk 0:00:08.5]}
54. Ra7+ {[%clk 0:00:03.2]} 54... Ke6 {[%clk 0:00:08.9]} 55. Ra8 {[%clk
0:00:03.7]} 55... Rd4 {[%clk 0:00:09.1]} 56. Ke3 {[%clk 0:00:03.7]} 56... Kd5
{[%clk 0:00:09.5]} 57. Rd8 {[%clk 0:00:02.7]} 57... Re4+ {[%clk 0:00:08.9]} 58.
Kd3 {[%clk 0:00:03]} 58... Rf4 {[%clk 0:00:09.3]} 59. Ke3 {[%clk 0:00:03.4]}
59... Ke6 {[%clk 0:00:09.5]} 60. Re8+ {[%clk 0:00:03.3]} 60... Kd5 {[%clk
0:00:10]} 61. Rd8 {[%clk 0:00:03.7]} 61... c4 {[%clk 0:00:09.7]} 62. Rc8 {[%clk
0:00:03.8]} 62... Re4+ {[%clk 0:00:08.3]} 63. Kd2 {[%clk 0:00:03.8]} 63... Rd4+
{[%clk 0:00:06.4]} 64. Ke3 {[%clk 0:00:04.1]} 64... Rd3+ {[%clk 0:00:06.5]} 65.
Ke2 {[%clk 0:00:04.6]} 65... e4 {[%clk 0:00:06]} 66. Rc7 {[%clk 0:00:04.8]}
66... Kd4 {[%clk 0:00:06.1]} 67. Rc6 {[%clk 0:00:05]} 67... d5 {[%clk
0:00:06.6]} 68. Ra6 {[%clk 0:00:03.3]} 68... e3 {[%clk 0:00:06.9]} 69. f4 {[%clk
0:00:03]} 69... Rd2+ {[%clk 0:00:06.5]} 70. Kf3 {[%clk 0:00:02.4]} 70... Rf2+
{[%clk 0:00:06.7]} 71. Kg4 {[%clk 0:00:02.9]} 71... Ke4 {[%clk 0:00:07]} 72.
Re6+ {[%clk 0:00:02.3]} 72... Kd4 {[%clk 0:00:06.7]} 73. f5 {[%clk 0:00:02.7]}
73... e2 {[%clk 0:00:05.8]} 74. f6 {[%clk 0:00:03.1]} 74... Kd3 {[%clk
0:00:05.7]} 75. f7 {[%clk 0:00:03.2]} 75... Rxf7 {[%clk 0:00:05.2]} 76. Re5
{[%clk 0:00:03.6]} 76... d4 {[%clk 0:00:05.5]} 77. Kg3 {[%clk 0:00:02.6]} 77...
Kd2 {[%clk 0:00:05.6]} 78. Kg2 {[%clk 0:00:02.8]} 78... d3 {[%clk 0:00:06]} 79.
Kh2 {[%clk 0:00:00.8]} 79... e1=Q {[%clk 0:00:06.4]} 80. Rxe1 {[%clk 0:00:00.8]}
80... Kxe1 {[%clk 0:00:06.9]} 81. Kg2 {[%clk 0:00:00.7]} 81... Ke2 {[%clk
0:00:07.5]} 0-1